Cogmind - Beta 13 @@@ ROGUE MODE // 2024.04.05 @ 11:37:01 Player: writers.room Result: Destroyed by G-34 Mercenary with Small Laser Performance ------------- Evolutions (0) 0 Regions Visited (1) 200 Robots Destroyed (5) 25 Value Destroyed (114) 114 Prototype IDs (0) 0 Alien Tech Used (0) 0 Bonus (0) 0 TOTAL SCORE: 339 Bonus ------- None Cogmind --------- Core Integrity 0/250 Matter 285/300 Energy 92/100 System Corruption 0% Temperature Cool (6) Movement Core (350) Ox6 Location -10/Materials Parts ------- > --- POWER (1) -------- (None) > --- PROPULSION (2) --- (None) > --- UTILITY (2) ------ Medium Storage Unit Core Shielding > --- WEAPON (2) ------- Particle Cannon Particle Cannon > --- INVENTORY (10) --- Mining Claw Peak State ------------ > --- POWER ------------ Light Ion Engine > --- PROPULSION ------- Light Treads Light Treads > --- UTILITY ---------- Medium Storage Unit Core Shielding > --- WEAPON ----------- Mining Claw > --- INVENTORY -------- Light Ion Engine [Rating: 6] Favorites ----------- Power Ion Engine Engine Ion Engine Propulsion Light Treads Treads Light Treads Utility Medium Storage Unit Storage Medium Storage Unit Protection Core Shielding Weapon Mining Claw Energy Cannon Particle Cannon Slashing Weapon Mining Claw Build | -11 -10 ------- Run | Yrd Mat Slots Evolved . | . . Power . | . . Propulsion . | . . Utility . | . . Weapon . | . . Parts Attached 10 | 2 8 Power 2 | . 2 Engine 2 | . 2 Core . | . . Reactor . | . . Propulsion 3 | 2 1 Treads 3 | 2 1 Leg . | . . Wheel . | . . Hover . | . . Flight . | . . Utility 2 | . 2 Device . | . . Storage 1 | . 1 Processor . | . . Hackware . | . . Protection 1 | . 1 Artifact . | . . Weapon 3 | . 3 Energy Gun . | . . Energy Cannon 2 | . 2 Ballistic Gun . | . . Ballistic Cannon . | . . Launcher . | . . Special Weapon . | . . Impact Weapon . | . . Slashing Weapon 1 | . 1 Piercing Weapon . | . . Special Melee Weapon . | . . Unidentified Prototypes . | . . Parts Lost 3 | . 3 Power 1 | . 1 Propulsion 2 | . 2 Utility . | . . Weapon . | . . Highest Loss Streak 3 | . 3 To Critical Strikes . | . . Average Slot Usage (%) 63 | . 63 Engine 3 | . 3 Treads 27 | . 27 Storage 10 | . 10 Protection 8 | . 8 Slashing Weapon 12 | . 12 Naked Turns . | . . Heaviest Build 19 | . 19 Greatest Support 40 | 40 40 Greatest Overweight (x) 6 | . 6 Average Overweight (x) . | . . Largest Inventory Capacity 10 | 5 10 Average Capacity 8 | 5 8 Most Carried 2 | 2 2 Average Carried . | . . Final Capacity 10 | 5 10 Final Carried 1 | . 1 Class Distribution -------------------- 100% | Mutant Dominant Class ---------------- Mutant | -10/Materials Resources | -11 -10 ----------- Run | Yrd Mat Matter Collected 255 | 205 50 Remotely . | . . Salvage Created 51 | 5 46 Parts 8 | 3 5 Haulers Intercepted . | . . Recyclers Shooed . | . . Parts Field Recycled . | . . Retrieved Matter . | . . Parts Self-Destructed . | . . Prevented . | . . Kills | -11 -10 ------- Run | Yrd Mat Combat Hostiles Destroyed 1 | . 1 Melee 1 | . 1 Classes Destroyed 4 | 2 2 Worker 2 | 1 1 Builder 1 | . 1 Tunneler 1 | 1 . Swarmer 1 | . 1 Best Kill Streak 1 | 1 1 Combat Bots Only 1 | . 1 Max Kills in Single Turn 1 | 1 1 Gunslinging . | . . Exploded . | . . Melee 1 | . 1 Uniques/NPCs Destroyed . | . . Combat | -11 -10 -------- Run | Yrd Mat Hostile Shots Fired 120 | . 120 Missed 30 | . 30 Damage Taken 829 | . 829 Core 257 | . 257 Absorbed by Shields . | . . Redirected to Shielding 30 | . 30 Core Remaining (%) 100 | 100 . Volleys Fired . | . . Largest . | . . Hottest . | . . Shots Fired . | . . Gun . | . . Cannon . | . . Launcher . | . . Special . | . . Kinetic . | . . Thermal . | . . Explosive . | . . Electromagnetic . | . . Robot Hit Streak . | . . Robot Miss Streak . | . . Penetration Max . | . . Secondary Targets . | . . Shots Hit Robots 10 | . 10 Core Hits 1 | . 1 Critical Kills . | . . Critical Parts Destroyed . | . . Critical Strikes . | . . Melee Attacks 68 | . 68 Impact . | . . Slashing 68 | . 68 Piercing . | . . Sneak Attacks 4 | . 4 Combat Hostiles . | . . Follow-up Attacks . | . . Damage Inflicted 301 | 12 289 Guns . | . . Cannons . | . . Explosions . | . . Melee 289 | . 289 Ramming 12 | 12 . Kinetic . | . . Thermal . | . . Explosive . | . . Electromagnetic . | . . Impact . | . . Slashing 289 | . 289 Piercing . | . . Highest Corruption . | . . Average Corruption . | . . Corruption Purged . | . . Corruption Blocked . | . . Overload Shots . | . . Overflow Damage 34 | . 34 Projectiles . | . . Explosions . | . . Melee 34 | . 34 Knockbacks . | . . Impact . | . . Kinetic . | . . Secondary . | . . Self-Inflicted Damage . | . . Shots . | . . Rammed 10 | 10 . Targets Rammed 12 | 12 . Kicked . | . . Crushed 2 | 2 . Highest Temperature . | . . Average Temperature . | . . Received Heat Transfer 204 | . 204 Siege Activations . | . . Robots Corrupted . | . . Combat Hostiles . | . . Parts Fried . | . . Impact Corruptions . | . . Robots Melted . | . . Combat Hostiles . | . . Parts Melted . | . . Heat Transferred . | . . Parts Sabotaged . | . . Parts Stolen . | . . Parts Stripped . | . . Power Chain Reactions . | . . Alert | -11 -10 ------- Run | Yrd Mat Peak Influence 157 | 5 157 Initial 6 | . 6 Average 52 | 4 57 Maximum Alert Level . | . . Low Security (%) 100 | 100 100 Level 1 . | . . Level 2 . | . . Level 3 . | . . Level 4 . | . . Level 5 . | . . High Security . | . . Max Security . | . . Squads Dispatched 1 | . 1 Investigation . | . . Extermination . | . . Reinforcement 1 | . 1 Assault . | . . Garrison . | . . Intercept . | . . Searches Triggered . | . . Construction Impeded . | . . Haulers Reinforced . | . . Active Scanning Responses . | . . Cargo Convoy Interrupts . | . . Stealth | -11 -10 --------- Run | Yrd Mat Distress Signals 1 | . 1 Communications Jammed . | . . Distress Signals . | . . Times Spotted 15 | . 15 Peak Tracking Total 9 | . 9 Tactical Retreats 2 | . 2 Traps | -11 -10 ------- Run | Yrd Mat Traps Triggered . | . . Indirectly . | . . Trap Hack Attempts . | . . Triggered . | . . Disarmed . | . . Reprogrammed . | . . Reused . | . . Traps Extracted . | . . Installed . | . . Triggered . | . . Machines | -11 -10 ---------- Run | Yrd Mat Machines Disabled 9 | . 9 Max in Single Turn 1 | . 1 Machines Repaired . | . . Machines Dismantled . | . . Machines Sabotaged . | . . Overloaded Fab Kills . | . . Hacking | -11 -10 --------- Run | Yrd Mat Machines Accessed 1 | . 1 Terminals 1 | . 1 Fabricators . | . . Repair Stations . | . . Recycling Units . | . . Scanalyzers . | . . Garrison Access . | . . Total Hacks 3 | . 3 Successful 2 | . 2 Failed 1 | . 1 Catastrophic . | . . Database Lockouts . | . . Manual . | . . Terminals 3 | . 3 Fabricators . | . . Repair Stations . | . . Recycling Units . | . . Scanalyzers . | . . Garrison Access . | . . Terminal Hacks 2 | . 2 Maintenance Status 1 | . 1 Hauler Manifests 1 | . 1 Fabricator Hacks . | . . Repair Station Hacks . | . . Recycling Unit Hacks . | . . Scanalyzer . | . . Garrison Access Hacks . | . . Unauthorized Hacks . | . . Terminals . | . . Fabricators . | . . Repair Stations . | . . Recycling Units . | . . Scanalyzers . | . . Garrison Access . | . . Data Cores Recovered . | . . Used . | . . Hacking Detections 1 | . 1 Full Trace Events . | . . Feedback Events . | . . Feedback Blocked . | . . Robot Schematics Acquired . | . . Robots Built . | . . Authchips . | . . Time . | . . Total Robot Build Rating . | . . Part Schematics Acquired . | . . Parts Built . | . . Authchips . | . . Time . | . . Total Part Build Rating . | . . Parts Repaired . | . . Time . | . . Parts Recycled . | . . Recycled Matter . | . . Retrieved Matter . | . . Retrieved Components . | . . Parts Scanalyzed . | . . Part Schematics Acquired . | . . Parts Damaged . | . . Bothacking | -11 -10 ------------ Run | Yrd Mat Used RIF Installer . | . . Robots Hacked . | . . Non-combat . | . . Combat . | . . Robot Hacks Applied . | . . Relay Couplers Released . | . . Fabnet Peak Effective % . | . . Robots Rewired . | . . Allies Hacked . | . . Hacks Repelled . | . . Allies | -11 -10 -------- Run | Yrd Mat Total Allies . | . . Largest Group . | . . Highest-Rated Group . | . . Highest-Rated Ally . | . . Total Orders . | . . Ally Attacks . | . . Total Damage . | . . Kills . | . . Allies Corrupted . | . . Allies Melted . | . . Intel | -11 -10 ------- Run | Yrd Mat Robot Analysis Total . | . . Derelict Logs Recovered . | . . Drone Launches . | . . Drone Recoveries . | . . Exploration | -11 -10 ------------- Run | Yrd Mat Turns Passed 1023 | 99 924 Spaces Moved 494 | 55 439 Core 11 | 10 1 Treads 483 | 45 438 Legs . | . . Wheels . | . . Hover . | . . Flight . | . . Fastest Speed 50 | 50 160 Average Speed 158 | 140 160 Slowest Speed 350 | 160 350 Overloaded Moves . | . . Propulsion Burnouts . | . . Robots Hopped . | . . Cave-ins Triggered . | . . Exploration Rate (%) 26 | 5 47 Regions Visited 1 Branch Regions . Pre-discovered Areas . | . . Known Exits Taken . | . . Unknown Exits Taken 1 | 1 . Scrap Searched . | . . Spaces Dug 23 | . 23 Terrain Destroyed 23 | . 23 Melee 23 | . 23 Projectile . | . . AOE . | . . Terrain Rammed . | . . Walls Destroyed . | . . Machines Disabled . | . . Actions | -11 -10 --------- Run | Yrd Mat Total 591 | 70 521 Wait 2 | . 2 Move 494 | 55 439 Hop . | . . Pick Up 2 | 2 . Fast Attach 6 | . 6 Attach 2 | 2 . Detach 1 | . 1 Swap 2 | . 2 Drop 3 | . 3 Fire . | . . Melee 68 | . 68 Ram . | . . Kick . | . . Crush 11 | 11 . Escape Stasis . | . . Rewire . | . . Trap . | . . Miscellaneous . | . . Route ------- -11/Scrapyard -10/Materials (discovered 2 exits: [*Mat x2]) History --------- Turn | Location | Event 5 | -11/Scrapyard | Discovered new exit (range 15) 100 | -11/Scrapyard | Entered Materials 312 | -10/Materials | Build established: Mutant 689 | -10/Materials | Discovered new exit (range 5) 931 | -10/Materials | Discovered new exit (range 8) 983 | -10/Materials | Core integrity fell below 50% 1013 | -10/Materials | Core integrity fell below 20% 1024 | -10/Materials | Destroyed by G-34 Mercenary with Small Laser Last Messages --------------- 00802_ K-01 Serf collects debris. 00826_ Dropped Lgt. Ion Engine. 00856_ Terminal disabled. 00867_ Acquired 10 matter. 00880_ Electrolysis Chamber disabled. 00930_ T-07 Excavator is excavating. 00931_ EXIT=FOUND 00935_ T-07 Excavator is excavating. 00939_ Sneak attack on T-07 Excavator. 00939_ Destroyed Lgt. Ion Engine. 00976_ Dropped Lgt. Treads. 00981_ R-06 Scavenger collects Lgt. Treads. 00991_ Lgt. Treads destroyed. 01004_ Ion Engine destroyed. 01009_ S-10 Pest destroyed. 01010_ R-06 Scavenger collects Lgt. Assault Rifle. 01014_ R-06 Scavenger collects Flight Unit. 01017_ Acquired Particle Cannon. 01018_ Lgt. Treads destroyed. 01020_ Acquired Particle Cannon. Map ----- +----------------------------------------------------+ | | | | | | | | | | | | | | | | | | | | | | | | | | | | | | | | | | | ?????????????????????????????????????????????????? | | ?????????????????????????????????????????????????? | | ?????????????????????????????????????????????????? | | ?????#####???????????????????????????????????????? | | ?????? ???????????????????????????????????????? | | ??????? ???????????????????????????????????????? | | ???????# ?????????????#####?????????????????????? | | ???????# ???#+#??#+##+# ]]#?????????????????????? | | ???????+ #### #### @ #?????????????????????? | | ???????# !!#?????????????????????? | | ???????? s!!#?????????????????????? | | ?????????# T sg**#?????????????????????? | | ?????????# g **#?????????????????????? | | ?????????# m [#####?????????????????????? | | ?????????# ! %#########+### ?????????? | | ?????????# ! == ?????????? | | ?????????# == ?????????? | | ?????????# ?????????? | | ?????????# ?????????? | | ??????##### ###########################??????????? | | ??????# #????????????????????????????????????? | | ??????# ##???????????????????????????????????? | | ??????# "#???????????????????????????????????? | | ??????# ##???????????????????????????????????? | | ??????# #????????????????????????????????????? | | ??????## ########??????????????????????????????? | | ?????### # = #??????????????????????????????? | | ????## # #= #??????????????????????????????? | | ????# + ! * #?????????????????????????????? | | ????## # # #????????????????????????????? | | ?????### # #????????????????????????????? | | ???????# # * #????????????????????????????? | | ?????? ###+#####???????????????????????????? | +----------------------------------------------------+ Best States ------------- Heat Dissipation 25 Energy Generation 10 Energy Capacity 250 Matter Stores 300 Matter Capacity 300 Sight Range 16 Terrain Scan Density 10 Core Shielding 20 Evasion (%) 50 Recoil Reduction 2 Item Schematics ----------------- None Robot Schematics ------------------ None Fabricated ------------ Nothing Alien Tech Used ----------------- None Achievements -------------- None Challenges ------------ None Game ------ Seed RelayFissionBeam Manual? 0 Play Time 00:09:53 Cumulative 33.7 hours Start 2024.04.05 @ 11:31:39 End 2024.04.05 @ 11:37:01 Sessions 1 Manual Loads 0 Difficulty Rogue Special Mode None Game No. 96 Rogue 56 Adventurer 14 Explorer 26 Win Type - Total 0 Types 0/0/0/0/0/0/0/0/0 Lore% 23 Gallery% 31 Achievement% 27 Wizard Run 0 Options --------- Layout 0 ASCII 0 Keyboard 1 Movement Vi Keybinds 0 Fullscreen 1 Font 18/SmallcapsGlow Map View 76x50 Zoom Use 0% Tactical HUD 1 Map Filters NONE Filters NONE Steam 1 RUN: e16f02cb-bbca-44d5-89f0-6751adee9b1d